fUSD/lending_fUSD_20250611
["ID","MTS","AMOUNT","RATE_DAILY","PERIOD"]
[365344068,1749611437878,-470.0,0.00016438,2]
[365344069,1749611437888,-490.0,0.00016438,2]
[365344070,1749611437897,-490.0,0.00016438,2]
[365344071,1749611437907,-490.0,0.00016438,2]
[365344072,1749611437917,-490.0,0.00016438,2]
[365344073,1749611437926,-490.0,0.00016438,2]
[365344074,1749611437936,-490.0,0.00016438,2]
[365344075,1749611437945,-490.0,0.00016438,2]
[365344076,1749611437955,-467.18824126,0.00016438,2]
[365344077,1749611437965,-490.0,0.00016438,2]
[365344078,1749611437975,-490.0,0.00016438,2]
[365344079,1749611437984,-490.0,0.00016438,2]
[365344080,1749611437994,-152.20237066,0.00016438,2]
[365344081,1749611438004,-151.0,0.00016438,2]
[365344082,1749611438013,-490.0,0.00016438,2]
[365344083,1749611438023,-490.0,0.00016438,2]
[365344084,1749611438033,-490.0,0.00016438,2]
[365344085,1749611438042,-490.0,0.00016438,2]
[365344086,1749611438053,-443.23860911,0.00016438,2]
[365344087,1749611438063,-490.0,0.00016438,2]
[365344088,1749611438078,-305.20473821,0.00016438,2]
[365344089,1749611438090,-490.0,0.00016438,2]
[365344090,1749611438104,-490.0,0.00016438,2]
[365344091,1749611438122,-490.0,0.00016438,2]
[365344092,1749611438132,-490.0,0.00016438,2]
[365344093,1749611438142,-490.0,0.00016438,2]
[365344094,1749611438151,-490.0,0.00016438,2]
[365344095,1749611438161,-490.0,0.00016438,2]
[365344096,1749611438171,-490.0,0.00016438,2]
[365344097,1749611438180,-490.0,0.00016438,2]
[365344098,1749611438190,-490.0,0.00016438,2]
[365344099,1749611438200,-490.0,0.00016438,2]
[365344100,1749611438209,-490.0,0.00016438,2]
[365344101,1749611438219,-361.34897527,0.00016438,2]
[365344102,1749611438229,-490.0,0.00016438,2]
[365344103,1749611438238,-490.0,0.00016438,2]
[365344104,1749611438248,-490.0,0.00016438,2]
[365344105,1749611438258,-490.0,0.00016438,2]
[365344106,1749611438268,-490.0,0.00016438,2]
[365344107,1749611438278,-490.0,0.00016438,2]
[365344108,1749611438288,-490.0,0.00016438,2]
[365344109,1749611438297,-490.0,0.00016438,2]
[365344111,1749611438307,-490.0,0.00016438,2]
[365344113,1749611438316,-550.42554867,0.00016438,2]
[365344115,1749611438326,-490.0,0.00016438,2]
[365344117,1749611438336,-490.0,0.00016438,2]
[365344119,1749611438346,-490.0,0.00016438,2]
[365344121,1749611438355,-472.28045912,0.00016438,2]
[365344123,1749611438364,-490.0,0.00016438,2]
[365344125,1749611438373,-490.0,0.00016438,2]
[365344127,1749611438382,-490.0,0.00016438,2]
[365344129,1749611438391,-243.03689789,0.00016438,2]
[365344131,1749611438400,-490.0,0.00016438,2]
[365344133,1749611438410,-490.0,0.00016438,2]
[365344135,1749611438419,-449.39212071,0.00016438,2]
[365344137,1749611438428,-470.30945437,0.00016438,2]
[365344139,1749611438437,-490.0,0.00016438,2]
[365344141,1749611438446,-95.61618336,0.00016438,2]
[365344143,1749611438460,-394.38381664,0.00016438,2]
[365344145,1749611438470,-4.19443393,0.00016438,2]
[365344587,1749611442874,-449.4207874,0.00016438,2]
[365344589,1749611442884,-490.0,0.00016438,2]
[365344591,1749611442894,-490.0,0.00016438,2]
[365344593,1749611442904,-490.0,0.00016438,2]
[365344595,1749611442912,-490.0,0.00016438,2]
[365344596,1749611442922,-490.0,0.00016438,2]
[365344599,1749611442931,-490.0,0.00016438,2]
[365344600,1749611442943,-490.0,0.00016438,2]
[365344602,1749611442953,-490.0,0.00016438,2]
[365344604,1749611442962,-490.0,0.00016438,2]
[365344606,1749611442972,-490.0,0.00016438,2]
[365344608,1749611442981,-490.0,0.00016438,2]
[365344610,1749611442991,-625.25729575,0.00016438,2]
[365344612,1749611443000,-490.0,0.00016438,2]
[365344614,1749611443010,-389.96518415,0.00016438,2]
[365344616,1749611443021,-490.0,0.00016438,2]
[365344618,1749611443031,-490.0,0.00016438,2]
[365344620,1749611443040,-534.90228645,0.00016438,2]
[365344622,1749611443051,-490.0,0.00016438,2]
[365344624,1749611443060,-490.0,0.00016438,2]
[365344626,1749611443069,-490.0,0.00016438,2]
[365344628,1749611443079,-490.0,0.00016438,2]
[365344630,1749611443089,-490.0,0.00016438,2]
[365344631,1749611443099,-490.0,0.00016438,2]
[365344633,1749611443108,-203.98427796,0.00016438,2]
[365344635,1749611443118,-490.0,0.00016438,2]
[365344637,1749611443128,-490.0,0.00016438,2]
[365344639,1749611443138,-490.0,0.00016438,2]
[365344642,1749611443148,-490.0,0.00016438,2]
[365344644,1749611443158,-490.0,0.00016438,2]
[365344645,1749611443168,-490.0,0.00016438,2]
[365344647,1749611443178,-490.0,0.00016438,2]
[365344650,1749611443188,-545.54527585,0.00016438,2]
[365344651,1749611443198,-490.0,0.00016438,2]
[365344654,1749611443207,-490.0,0.00016438,2]
[365344655,1749611443218,-490.0,0.00016438,2]
[365344657,1749611443227,-313.93393173,0.00016438,2]
[365344659,1749611443237,-490.0,0.00016438,2]
[365344661,1749611443247,-490.0,0.00016438,2]
[365344664,1749611443258,-551.66440131,0.00016438,2]
[365344666,1749611443268,-490.0,0.00016438,2]
[365344668,1749611443278,-490.0,0.00016438,2]
[365344669,1749611443287,-490.0,0.00016438,2]
[365344671,1749611443297,-490.0,0.00016438,2]
[365344673,1749611443306,-490.0,0.00016438,2]
[365344675,1749611443315,-490.0,0.00016438,2]
[365344677,1749611443325,-490.0,0.00016438,2]
[365344679,1749611443334,-545.69349139,0.00016438,2]
[365344680,1749611443343,-281.11628485,0.00016438,2]
[365344682,1749611443353,-443.95088209,0.00016438,2]
[365344684,1749611443362,-490.0,0.00016438,2]
[365344686,1749611443372,-490.0,0.00016438,2]
[365344688,1749611443381,-490.0,0.00016438,2]
[365344690,1749611443391,-490.0,0.00016438,2]
[365344692,1749611443401,-490.0,0.00016438,2]
[365344694,1749611443411,-490.0,0.00016438,2]
[365344696,1749611443421,-439.77959919,0.00016438,2]
[365344698,1749611443430,-421.35295859,0.00016438,2]
[365344700,1749611443439,-618.41628117,0.00016438,2]
[365344702,1749611443449,-490.0,0.00016438,2]
[365344704,1749611443459,-571.15395417,0.00016438,2]
[365344706,1749611443468,-461.92241889,0.00016438,2]
[365344708,1749611443478,-457.93440503,0.00016438,2]
[365344710,1749611443487,-376.35846569,0.00016438,2]
[365344712,1749611443497,-449.75231549,0.00016438,2]
[365344714,1749611443507,-490.0,0.00016438,2]
[365344715,1749611443517,-452.86377374,0.00016438,2]
[365344718,1749611443528,-490.0,0.00016438,2]
[365344720,1749611443538,-490.0,0.00016438,2]
[365344722,1749611443548,-489.13676922,0.00016438,2]
[365344724,1749611443557,-490.0,0.00016438,2]
[365344725,1749611443567,-440.73512415,0.00016438,2]
[365344727,1749611443576,-470.0,0.00016438,2]
[365344729,1749611443586,-490.0,0.00016438,2]
[365344731,1749611443595,-598.73101145,0.00016438,2]
[365344733,1749611443604,-490.0,0.00016438,2]
[365344735,1749611443615,-490.0,0.00016438,2]
[365344737,1749611443624,-178.89444553,0.00016438,2]
[365344739,1749611443634,-188.70878484,0.00016438,2]
[365344741,1749611443643,-490.0,0.00016438,2]
[365344743,1749611443652,-470.0,0.00016438,2]
[365344745,1749611443661,-470.0,0.00016438,2]
[365344747,1749611443671,-454.04157987,0.00016438,2]
[365344749,1749611443680,-490.0,0.00016438,2]
[365344751,1749611443689,-490.0,0.00016438,2]
[365344753,1749611443699,-442.31214416,0.00016438,2]
[365344755,1749611443707,-490.0,0.00016438,2]
[365344757,1749611443716,-250.16814661,0.00016438,2]
[365344759,1749611443725,-490.0,0.00016438,2]
[365344761,1749611443734,-504.61337227,0.00016438,2]
[365344763,1749611443743,-490.0,0.00016438,2]
[365344765,1749611443752,-470.0,0.00016438,2]
[365344767,1749611443762,-490.0,0.00016438,2]
[365344769,1749611443771,-470.0,0.00016438,2]
[365344771,1749611443780,-528.92833448,0.00016438,2]
[365344773,1749611443789,-460.70093373,0.00016438,2]
[365344774,1749611443798,-359.71451837,0.00016438,2]
[365344776,1749611443807,-389.11422377,0.00016438,2]
[365344778,1749611443817,-597.92311206,0.00016438,2]
[365344780,1749611443825,-446.94733541,0.00016438,2]
[365344782,1749611443838,-473.93413207,0.00016438,2]
[365344785,1749611443847,-490.0,0.00016438,2]
[365344786,1749611443856,-456.7429162,0.00016438,2]
[365344788,1749611443869,-454.74854529,0.00016438,2]
[365344790,1749611443878,-486.78276313,0.00016438,2]
[365344792,1749611443888,-489.17166552,0.00016438,2]
[365344794,1749611443897,-452.39693863,0.00016438,2]
[365344796,1749611443907,-448.60329837,0.00016438,2]
[365344798,1749611443916,-450.89643894,0.00016438,2]
[365344800,1749611443926,-443.3118096,0.00016438,2]
[365344802,1749611443935,-476.54961557,0.00016438,2]
[365344804,1749611443945,-470.0,0.00016438,2]
[365344806,1749611443955,-367.57222424,0.00016438,2]
[365344808,1749611443965,-160.64383238,0.00016438,2]
[365344810,1749611443975,-444.55317843,0.00016438,2]
[365344812,1749611443984,-490.0,0.00016438,2]
[365344835,1749611443994,-440.67799951,0.00016438,2]
[365344837,1749611444203,-449.30451911,0.00016438,2]
[365344839,1749611444213,-460.99919321,0.00016438,2]
[365344841,1749611444222,-437.90491429,0.00016438,2]
[365344843,1749611444231,-449.06870299,0.00016438,2]
[365344845,1749611444241,-453.45612718,0.00016438,2]
[365344847,1749611444250,-560.91366802,0.00016438,2]
[365344849,1749611444259,-470.0,0.00016438,2]
[365344851,1749611444268,-490.0,0.00016438,2]
[365344853,1749611444277,-466.24060644,0.00016438,2]
[365344855,1749611444286,-470.0,0.00016438,2]
[365344857,1749611444295,-464.64508438,0.00016438,2]
[365344859,1749611444304,-358.66354907,0.00016438,2]
[365344861,1749611444314,-437.56317867,0.00016438,2]
[365344863,1749611444323,-490.0,0.00016438,2]
[365344865,1749611444332,-470.0,0.00016438,2]
[365344867,1749611444342,-470.0,0.00016438,2]
[365344869,1749611444351,-442.14482973,0.00016438,2]
[365344871,1749611444361,-305.24692208,0.00016438,2]
[365344873,1749611444370,-490.0,0.00016438,2]
[365344875,1749611444379,-309.0947771,0.00016438,2]
[365344877,1749611444388,-490.0,0.00016438,2]
[365344879,1749611444397,-470.0,0.00016438,2]
[365344881,1749611444406,-470.0,0.00016438,2]
[365344882,1749611444415,-299.34,0.00016438,2]
[365344884,1749611444425,-490.0,0.00016438,2]
[365344886,1749611444434,-181.59,0.00016438,2]
[365344888,1749611444444,-490.0,0.00016438,2]
[365344890,1749611444453,-470.0,0.00016438,2]
[365344892,1749611444462,-470.0,0.00016438,2]
[365344894,1749611444471,-470.0,0.00016438,2]
[365344896,1749611444480,-470.0,0.00016438,2]
[365344898,1749611444490,-470.0,0.00016438,2]
[365344900,1749611444499,-490.0,0.00016438,2]
[365344902,1749611444508,-490.0,0.00016438,2]
[365344904,1749611444518,-177.45,0.00016438,2]
[365344906,1749611444527,-490.0,0.00016438,2]
[365344908,1749611444536,-490.0,0.00016438,2]
[365344910,1749611444545,-490.0,0.00016438,2]
[365344912,1749611444554,-502.09,0.00016438,2]
[365344914,1749611444563,-490.0,0.00016438,2]
[365344916,1749611444573,-219.97,0.00016438,2]
[365344918,1749611444582,-470.0,0.00016438,2]
[365344920,1749611444591,-534.11,0.00016438,2]
[365344922,1749611444601,-470.0,0.00016438,2]
[365344924,1749611444610,-550.28,0.00016438,2]
[365344926,1749611444619,-470.0,0.00016438,2]
[365344928,1749611444628,-470.0,0.00016438,2]
[365344930,1749611444637,-470.0,0.00016438,2]
[365344932,1749611444648,-470.0,0.00016438,2]
[365344934,1749611444657,-470.0,0.00016438,2]
[365344936,1749611444667,-470.0,0.00016438,2]
[365344938,1749611444676,-291.65776528,0.00016438,2]
[365344940,1749611444685,-556.9048097,0.00016438,2]
[365344942,1749611444694,-159.6461952,0.00016438,2]
[365344943,1749611444704,-490.0,0.00016438,2]
[365344945,1749611444713,-463.43935883,0.00016438,2]
[365344947,1749611444722,-460.0,0.00016438,2]
[365344949,1749611444732,-462.51715865,0.00016438,2]
[365344951,1749611444741,-171.3116679,0.00016438,2]
[365344953,1749611444750,-381.39872411,0.00016438,2]
[365344955,1749611444760,-490.0,0.00016438,2]
[365344957,1749611444771,-499.6,0.00016438,2]
[365344958,1749611444780,-490.0,0.00016438,2]
[365344959,1749611444790,-470.0,0.00016438,2]
[365344960,1749611444799,-591.90583668,0.00016438,2]
[365344961,1749611444808,-490.0,0.00016438,2]
[365344962,1749611444817,-461.66531039,0.00016438,2]
[365344963,1749611444826,-494.98239722,0.00016438,2]
[365344964,1749611444835,-531.73,0.00016438,2]
[365344965,1749611444843,-470.0,0.00016438,2]
[365344966,1749611444852,-490.0,0.00016438,2]
[365344967,1749611444867,-1041.73,0.00016438,2]
[365344968,1749611444876,-490.0,0.00016438,2]
[365344969,1749611444885,-490.0,0.00016438,2]
[365344971,1749611444896,-334.02,0.00016438,2]
[365344973,1749611444907,-465.70747968,0.00016438,2]
[365344975,1749611444916,-466.75847997,0.00016438,2]
[365344977,1749611444926,-480.0,0.00016438,2]
[365344979,1749611444936,-430.7096214,0.00016438,2]
[365344981,1749611444946,-262.3950167,0.00016438,2]
[365344983,1749611444956,-490.0,0.00016438,2]
[365344985,1749611444965,-490.0,0.00016438,2]
[365344987,1749611444975,-595.14,0.00016438,2]
[365344989,1749611444984,-347.85,0.00016438,2]
[365344991,1749611444993,-490.0,0.00016438,2]
[365344993,1749611445002,-480.0,0.00016438,2]
[365344995,1749611445012,-490.0,0.00016438,2]
[365344997,1749611445022,-458.9405372,0.00016438,2]
[365344999,1749611445030,-205.6866566,0.00016438,2]
[365345001,1749611445040,-470.0,0.00016438,2]
[365345003,1749611445049,-450.0,0.00016438,2]
[365345005,1749611445058,-490.0,0.00016438,2]
[365345007,1749611445067,-386.14381708,0.00016438,2]
[365345009,1749611445076,-490.0,0.00016438,2]
[365345011,1749611445085,-490.0,0.00016438,2]
[365345013,1749611445095,-490.0,0.00016438,2]
[365345015,1749611445105,-450.0,0.00016438,2]
[365345017,1749611445114,-235.06353649,0.00016438,2]
[365345019,1749611445124,-600.0,0.00016465,4]
[365345021,1749611445133,-1156.34415405,0.00016492,2]
[365345023,1749611445142,-1000.0,0.00016502,2]
[365345025,1749611445152,-5638.2753,0.00016502,2]
[365345027,1749611445162,-2500.0,0.00016502,2]
[365345029,1749611445171,-5000.0,0.00016502,2]
[365345031,1749611445181,-600.0,0.0001656,4]
[365345033,1749611445190,-165.44,0.00016602,2]
[365345035,1749611445200,-460.0,0.00016602,2]
[365345037,1749611445209,-460.0,0.00016602,2]
[365345038,1749611445218,-460.0,0.00016602,2]
[365345041,1749611445227,-460.0,0.00016602,2]
[365345043,1749611445237,-490.0,0.00016602,2]
[365345044,1749611445246,-460.0,0.00016602,2]
[365345047,1749611445258,-452.99,0.00016602,2]
[365345049,1749611445268,-460.0,0.00016602,2]
[365345051,1749611445278,-460.0,0.00016602,2]
[365345053,1749611445287,-460.0,0.00016602,2]
[365345055,1749611445296,-460.0,0.00016602,2]
[365345057,1749611445305,-490.0,0.00016602,2]
[365345059,1749611445315,-460.0,0.00016602,2]
[365345061,1749611445324,-460.0,0.00016602,2]
[365345063,1749611445332,-460.0,0.00016602,2]
[365345065,1749611445341,-457.0,0.00016602,2]
[365345067,1749611445350,-490.0,0.00016602,2]
[365345069,1749611445360,-608.83,0.00016602,2]
[365345071,1749611445369,-430.0,0.00016602,2]
[365345073,1749611445379,-490.0,0.00016602,2]
[365345074,1749611445388,-490.0,0.00016602,2]
[365345077,1749611445397,-490.0,0.00016602,2]
[365345079,1749611445406,-490.0,0.00016602,2]
[365345080,1749611445416,-460.0,0.00016602,2]
[365345082,1749611445424,-554.98336828,0.00016602,2]
[365345084,1749611445433,-460.0,0.00016602,2]
[365345086,1749611445442,-230.0,0.00016602,2]
[365345088,1749611445452,-490.0,0.00016602,2]
[365345090,1749611445462,-460.0,0.00016602,2]
[365345092,1749611445471,-490.0,0.00016602,2]
[365345094,1749611445480,-490.0,0.00016602,2]
[365345096,1749611445489,-460.0,0.00016602,2]
[365345098,1749611445498,-460.0,0.00016602,2]
[365345101,1749611445507,-490.0,0.00016602,2]
[365345103,1749611445517,-460.0,0.00016602,2]
[365345105,1749611445526,-517.3,0.00016602,2]
[365345107,1749611445535,-490.0,0.00016602,2]
[365345109,1749611445545,-490.0,0.00016602,2]
[365345111,1749611445554,-460.0,0.00016602,2]
[365345113,1749611445563,-460.0,0.00016602,2]
[365345115,1749611445572,-490.0,0.00016602,2]
[365345118,1749611445583,-490.0,0.00016602,2]
[365345120,1749611445592,-490.0,0.00016602,2]
[365345122,1749611445602,-460.0,0.00016602,2]
[365345123,1749611445612,-460.0,0.00016602,2]
[365345125,1749611445621,-490.0,0.00016602,2]
[365345127,1749611445631,-455.0,0.00016602,2]
[365345129,1749611445640,-460.0,0.00016602,2]
[365345131,1749611445649,-460.0,0.00016602,2]
[365345133,1749611445658,-460.0,0.00016602,2]
[365345135,1749611445667,-460.0,0.00016602,2]
[365345137,1749611445675,-490.0,0.00016602,2]
[365345139,1749611445684,-460.0,0.00016602,2]
[365345141,1749611445693,-460.0,0.00016602,2]
[365345143,1749611445702,-460.0,0.00016602,2]
[365345145,1749611445711,-460.0,0.00016602,2]
[365345148,1749611445721,-460.0,0.00016602,2]
[365345150,1749611445730,-369.31344834,0.00016602,2]
[365345152,1749611445739,-460.0,0.00016602,2]
[365345154,1749611445748,-460.0,0.00016602,2]
[365345156,1749611445758,-460.0,0.00016602,2]
[365345158,1749611445767,-490.0,0.00016602,2]
[365345160,1749611445777,-460.0,0.00016602,2]
[365345162,1749611445787,-460.0,0.00016602,2]
[365345164,1749611445796,-490.0,0.00016602,2]
[365345166,1749611445806,-460.0,0.00016602,2]
[365345168,1749611445815,-159.72080959,0.00016602,2]
[365345170,1749611445824,-604.45,0.00016602,2]
[365345172,1749611445833,-460.0,0.00016602,2]
[365345174,1749611445842,-460.0,0.00016602,2]
[365345176,1749611445851,-490.0,0.00016602,2]
[365345178,1749611445862,-460.0,0.00016602,2]
[365345180,1749611445875,-460.0,0.00016602,2]
[365345182,1749611445884,-440.36644474,0.00016602,2]
[365345184,1749611445893,-460.0,0.00016602,2]
[365345186,1749611445902,-448.79837407,0.00016602,2]
[365345188,1749611445912,-460.0,0.00016602,2]
[365345190,1749611445921,-460.0,0.00016602,2]
[365345192,1749611445930,-460.0,0.00016602,2]
[365345194,1749611445940,-460.0,0.00016602,2]
[365345196,1749611445950,-460.0,0.00016602,2]
[365345198,1749611445959,-460.0,0.00016602,2]
[365345200,1749611445969,-420.0,0.00016602,2]
[365345202,1749611445978,-460.0,0.00016602,2]
[365345204,1749611445989,-460.0,0.00016602,2]
[365345206,1749611446001,-460.0,0.00016602,2]
[365345208,1749611446010,-460.0,0.00016602,2]
[365345210,1749611446020,-460.0,0.00016602,2]
[365345212,1749611446030,-460.0,0.00016602,2]
[365345214,1749611446039,-460.0,0.00016602,2]
[365345216,1749611446048,-460.0,0.00016602,2]
[365345218,1749611446058,-460.0,0.00016602,2]
[365345220,1749611446069,-464.58621236,0.00016602,2]
[365345222,1749611446078,-460.0,0.00016602,2]
[365345224,1749611446087,-460.0,0.00016602,2]
[365345226,1749611446096,-460.0,0.00016602,2]
[365345228,1749611446106,-460.0,0.00016602,2]
[365345230,1749611446115,-460.0,0.00016602,2]
[365345232,1749611446125,-410.0,0.00016602,2]
[365345234,1749611446134,-460.0,0.00016602,2]
[365345236,1749611446144,-460.0,0.00016602,2]
[365345238,1749611446154,-460.0,0.00016602,2]
[365345240,1749611446163,-460.0,0.00016602,2]
[365345242,1749611446173,-460.0,0.00016602,2]
[365345244,1749611446182,-460.0,0.00016602,2]
[365345246,1749611446192,-425.49220905,0.00016602,2]
[365345248,1749611446201,-460.0,0.00016602,2]
[365345250,1749611446211,-460.0,0.00016602,2]
[365345252,1749611446220,-460.0,0.00016602,2]
[365345254,1749611446229,-460.0,0.00016602,2]
[365345257,1749611446239,-460.0,0.00016602,2]
[365345260,1749611446248,-280.0,0.00016602,2]
[365345263,1749611446257,-460.0,0.00016602,2]
[365345266,1749611446266,-460.0,0.00016602,2]
[365345268,1749611446276,-283.37863118,0.00016602,2]
[365345270,1749611446285,-460.0,0.00016602,2]
[365345272,1749611446295,-510.53209258,0.00016602,2]
[365345274,1749611446305,-446.83727468,0.00016602,2]
[365345276,1749611446314,-460.0,0.00016602,2]
[365345278,1749611446323,-311.34,0.00016602,2]
[365345280,1749611446332,-257.63526222,0.00016602,2]
[365345281,1749611446341,-295.97,0.00016602,2]
[365345284,1749611446351,-490.0,0.00016602,2]
[365345286,1749611446361,-430.07,0.00016602,2]
[365345288,1749611446370,-490.0,0.00016602,2]
[365345290,1749611446380,-580.28,0.00016602,2]
[365345291,1749611446389,-490.0,0.00016602,2]
[365345293,1749611446398,-490.0,0.00016602,2]
[365345296,1749611446407,-535.73,0.00016602,2]
[365345298,1749611446417,-490.0,0.00016602,2]
[365345300,1749611446426,-490.0,0.00016602,2]
[365345302,1749611446436,-162.75,0.00016602,2]
[365345304,1749611446445,-490.0,0.00016602,2]
[365345306,1749611446454,-1041.73,0.00016602,2]
[365345308,1749611446464,-490.0,0.00016602,2]
[365345310,1749611446473,-470.0,0.00016602,2]
[365345312,1749611446483,-490.0,0.00016602,2]
[365345314,1749611446493,-490.0,0.00016602,2]
[365345316,1749611446502,-595.14,0.00016602,2]
[365345318,1749611446511,-599.62638877,0.00016602,2]
[365345320,1749611446521,-161.05999999,0.00016602,2]
[365345322,1749611446530,-490.0,0.00016602,2]
[365345324,1749611446539,-460.0,0.00016602,2]
[365345326,1749611446548,-460.0,0.00016602,2]
[365345328,1749611446557,-475.76,0.00016602,2]
[365345330,1749611446566,-490.0,0.00016767,2]
[365345332,1749611446577,-466.12775175,0.00016767,2]
[365345333,1749611446586,-490.0,0.00016767,2]
[365345335,1749611446595,-490.0,0.00016767,2]
[365345337,1749611446604,-287.91,0.00016767,2]
[365345339,1749611446613,-172.38,0.00016767,2]
[365345341,1749611446623,-477.65544619,0.00016767,2]
[365345343,1749611446632,-338.53,0.00016767,2]
[365345345,1749611446641,-460.0,0.00016767,2]
[365345347,1749611446651,-472.16595217,0.00016767,2]
[365345349,1749611446660,-461.32946001,0.00016767,2]
[365345351,1749611446669,-267.02,0.00016767,2]
[365345353,1749611446679,-470.86262835,0.00016767,2]
[365345355,1749611446688,-277.82,0.00016767,2]
[365345357,1749611446697,-460.0,0.00016767,2]
[365345359,1749611446707,-400.5,0.00016767,2]
[365345361,1749611446715,-150.68,0.00016767,2]
[365345363,1749611446725,-490.0,0.00016767,2]
[365345365,1749611446735,-264.57,0.00016767,2]
[365345367,1749611446744,-490.0,0.00016767,2]
[365345369,1749611446753,-490.0,0.00016767,2]
[365345371,1749611446763,-490.0,0.00016767,2]
[365345373,1749611446772,-490.0,0.00016767,2]
[365345375,1749611446782,-490.0,0.00016767,2]
[365345377,1749611446790,-563.76,0.00016767,2]
[365345379,1749611446799,-490.0,0.00016767,2]
[365345381,1749611446808,-490.0,0.00016767,2]
[365345383,1749611446817,-515.35171925,0.00016767,2]
[365345384,1749611446827,-1041.73,0.00016767,2]
[365345386,1749611446836,-490.0,0.00016767,2]
[365345388,1749611446845,-164.38,0.00016767,2]
[365345390,1749611446855,-251.71309299,0.00016767,2]
[365345392,1749611446866,-595.14,0.00016767,2]
[365345394,1749611446876,-490.0,0.00016767,2]
[365345395,1749611446885,-1156.34415399,0.00016871,2]
[365345396,1749611446894,-405.19472784,0.000169,2]
[365345397,1749611446904,-312.97,0.00016931,2]
[365345398,1749611446914,-173.7,0.00016931,2]
[365345399,1749611446923,-490.0,0.00016931,2]
[365345400,1749611446932,-266.74342271,0.00016931,2]
[365345401,1749611446943,-490.0,0.00016931,2]
[365345402,1749611446952,-490.0,0.00016931,2]
[365345403,1749611446960,-636.51,0.00016931,2]
[365345405,1749611446970,-490.0,0.00016931,2]
[365345407,1749611446979,-403.69,0.00016931,2]
[365345409,1749611446988,-490.0,0.00016931,2]
[365345411,1749611446997,-490.0,0.00016931,2]
[365345413,1749611447007,-1041.73,0.00016931,2]
[365345415,1749611447016,-595.14,0.00016931,2]
[365345417,1749611447026,-207.85581707,0.00016931,2]
[365345419,1749611447034,-166.56336971,0.00016995,2]
[365345421,1749611447044,-833.29909032,0.00016998,2]
[365345423,1749611447054,-405.19472758,0.00017003,2]
[365345425,1749611447063,-500.0,0.00017094,2]
[365345427,1749611447072,-490.0,0.00017095,2]
[365345429,1749611447082,-510.5,0.00017095,2]
[365345431,1749611447091,-279.06,0.00017095,2]
[365345433,1749611447100,-182.70687632,0.00017095,2]
[365345435,1749611447110,-496.83,0.00017095,2]
[365345437,1749611447119,-490.0,0.00017095,2]
[365345439,1749611447128,-1041.73,0.00017095,2]
[365345441,1749611447138,-595.14,0.00017095,2]
[365345443,1749611447147,-405.19472758,0.00017107,2]
[365345445,1749611447156,-644.13,0.0001717,2]
[365345447,1749611447166,-405.19472758,0.0001721,2]
[365345449,1749611447175,-202.0,0.00017242,3]
[365345451,1749611447184,-1156.34415399,0.00017249,2]
[365345453,1749611447193,-447.37,0.0001726,2]
[365345455,1749611447203,-490.0,0.0001726,2]
[365345457,1749611447211,-1041.73,0.0001726,2]
[365345459,1749611447221,-595.14,0.0001726,2]
[365345461,1749611447230,-178.71,0.00017261,2]